[Event "4NCL 2021-22"]
[Site "England"]
[Date "2022.03.26"]
[Round "5.22"]
[White "Connell, Blair N"]
[Black "Dong, Bao Nghia"]
[Result "0-1"]
[ECO "C02"]
[WhiteElo "2230"]
[BlackElo "2332"]
[Annotator "ChessBase"]
[PlyCount "86"]
[EventDate "2021.11.27"]
[EventType "team-tourn"]
[EventCountry "ENG"]
[SourceTitle "playchess.com"]
[Source "ChessBase"]
[SourceQuality "1"]
[TimeControl "40/6000+30:3000+30"]

1. e4 {[%emt 0:00:14]} e6 {[%emt 0:00:31]} 2. d4 {[%emt 0:00:10]} d5 {[%emt 0:00:04]} 3. e5 {[%emt 0:00:21]} c5 {[%emt 0:00:15]} 4. c3 {[%emt 0:00:07]} Ne7 {[%emt 0:00:05]} 5. Nf3 {[%emt 0:00:55]} Nec6 {[%emt 0:00:05]} 6. Bd3 {[%emt 0:00:37]} b6 {[%emt 0:00:13]} 7. Qe2 {[%emt 0:00:10]} cxd4 {[%emt 0:00:25]} 8. cxd4 {[%emt 0:00:26]} Nb4 {[%emt 0:00:48]} 9. Bb5+ {[%emt 0:00:09]} Bd7 {[%emt 0:00:08]} 10. Nc3 {[%emt 0:00:39]} Be7 {[%emt 0:07:03]} 11. a3 {[%emt 0:02:09]} Bxb5 {[%emt 0:00:14]} 12. Qxb5+ {[%emt 0:01:41]} N4c6 {[%emt 0:00:06]} 13. h4 {[%emt 0:00:37]} a6 {[%emt 0:03:55]} 14. Qd3 {[%emt 0:07:35]} Na5 {[%emt 0:02:09]} 15. Rh3 {[%emt 0:08:05]} Nbc6 {[%emt 0:01:58]} 16. Ne2 {[%emt 0:19:42]} b5 {[%emt 0:07:24]} 17. Rg3 {[%emt 0:07:10]} Bf8 {[%emt 0:06:27]} 18. Nf4 {[%emt 0:10:18]} Qb6 {[%emt 0:08:58]} 19. Nh5 {[%emt 0:02:13]} g6 {[%emt 0:02:30]} 20. Nf6+ {[%emt 0:00:51]} Kd8 {[%emt 0:00:04]} 21. h5 {[%emt 0:21:24]} Ra7 {[%emt 0:05:01]} 22. Rh3 {[%emt 0:00:40]} gxh5 {[%emt 0:12:26]} 23. Bg5 {[%emt 0:02:51]} Kc8 {[%emt 0:01:58]} 24. Nxh7 {[%emt 0:06:42]} Be7 {[%emt 0:02:44]} 25. Bxe7 {[%emt 0:00:49]} Rxe7 {[%emt 0:01:15]} 26. Nf6 {[%emt 0:02:37]} b4 {[%emt 0:00:38]} 27. Kf1 {[%emt 0:06:13]} bxa3 {[%emt 0:00:19]} 28. Qxa3 {[%emt 0:00:47]} Rb7 {[%emt 0:00:22]} 29. Rxh5 {[%emt 0:03:06]} Rd8 {[%emt 0:05:59]} 30. Rh7 {[%emt 0:00:54]} Nb3 {[%emt 0:02:48]} 31. Rd1 {[%emt 0:00:52]} Qb5+ {[%emt 0:00:42]} 32. Kg1 {[%emt 0:00:26]} Qe2 {[%emt 0:00:52]} 33. Re1 {[%emt 0:00:19]} Qc4 {[%emt 0:00:07]} 34. Re3 {[%emt 0:00:51]} Nbxd4 {[%emt 0:05:07]} 35. Nxd4 {[%emt 0:00:22]} Nxd4 {[%emt 0:00:05]} 36. Qc3 {[%emt 0:01:14]} Kb8 {[%emt 0:02:00]} 37. Qxc4 {[%emt 0:00:10]} dxc4 {[%emt 0:00:02]} 38. Ne4 {[%emt 0:01:02]} Rxb2 {[%emt 0:02:11]} 39. g3 {[%emt 0:03:52]} Rb3 {[%emt 0:02:37]} 40. Rxf7 {[%emt 0:00:07]} c3 {[%emt 0:01:24]} 41. Nc5 {[%emt 0:05:32]} Rb6 {[%emt 0:00:40]} 42. Kg2 {[%emt 0:03:10]} c2 {[%emt 0:00:58]} 43. Rc3 {[%emt 0:00:12]} Rc6 {[%emt 0:00:36]} 0-1

[Event "4NCL 2021-22"]
[Site "England"]
[Date "2022.03.26"]
[Round "5.23"]
[White "Williams, Samuel G"]
[Black "Steil-Antoni, Fiona"]
[Result "0-1"]
[ECO "E04"]
[WhiteElo "2239"]
[BlackElo "2163"]
[Annotator "ChessBase"]
[PlyCount "97"]
[EventDate "2021.11.27"]
[EventType "team-tourn"]
[EventCountry "ENG"]
[SourceTitle "playchess.com"]
[Source "ChessBase"]
[SourceQuality "1"]
[TimeControl "40/6000+30:3000+30"]

1. d4 {[%emt 0:00:17]} d5 {[%emt 0:00:05]} 2. c4 {[%emt 0:00:29]} e6 {[%emt 0:00:07]} 3. Nc3 {[%emt 0:00:43]} c6 {[%emt 0:00:17]} 4. Nf3 {[%emt 0:00:48]} dxc4 {[%emt 0:00:12]} 5. g3 {[%emt 0:10:22]} Nf6 {[%emt 0:07:36]} 6. Bg2 {[%emt 0:01:09]} b5 {[%emt 0:02:13]} 7. Ne5 {[%emt 0:04:07]} Nd5 {[%emt 0:02:43]} 8. O-O {[%emt 0:03:56]} Be7 {[%emt 0:05:28]} 9. a4 {[%emt 0:02:28]} b4 {[%emt 0:39:51]} 10. Ne4 {[%emt 0:06:30]} Ba6 {[%emt 0:02:55]} 11. Nc5 {[%emt 0:08:17]} Bxc5 {[%emt 0:09:21]} 12. dxc5 {[%emt 0:00:14]} O-O {[%emt 0:02:41]} 13. Qd4 {[%emt 0:27:04]} f6 {[%emt 0:05:25]} 14. Nxc4 {[%emt 0:06:46]} e5 {[%emt 0:01:14]} 15. Qd3 {[%emt 0:03:08]} f5 {[%emt 0:02:15]} 16. Qc2 {[%emt 0:13:59]} Nd7 {[%emt 0:02:01]} 17. Ne3 {[%emt 0:02:17]} e4 {[%emt 0:04:31]} 18. Rd1 {[%emt 0:01:46]} Nxe3 {[%emt 0:04:21]} 19. Bxe3 {[%emt 0:00:15]} Qe7 {[%emt 0:01:04]} 20. Rd6 {[%emt 0:04:31]} Ne5 {[%emt 0:03:54]} 21. b3 {[%emt 0:01:49]} Bc8 {[%emt 0:04:47]} 22. Bf4 {[%emt 0:03:50]} a5 {[%emt 0:00:29]} 23. Rad1 {[%emt 0:03:35]} Bb7 {[%emt 0:01:31]} 24. f3 {[%emt 0:00:51]} g5 {[%emt 0:03:35]} 25. Bc1 {[%emt 0:01:48]} Rad8 {[%emt 0:01:47]} 26. fxe4 {[%emt 0:00:39]} f4 {[%emt 0:01:28]} 27. gxf4 {[%emt 0:00:38]} gxf4 {[%emt 0:00:03]} 28. Bb2 {[%emt 0:00:34]} Rxd6 {[%emt 0:01:16]} 29. cxd6 {[%emt 0:00:28]} Qg5 {[%emt 0:00:18]} 30. Bxe5 {[%emt 0:01:06]} Qxe5 {[%emt 0:00:01]} 31. Qc4+ {[%emt 0:00:12]} Kg7 {[%emt 0:00:57]} 32. d7 {[%emt 0:00:26]} Rd8 {[%emt 0:00:19]} 33. Bf3 {[%emt 0:01:15]} Kf6 {[%emt 0:00:17]} 34. Kh1 {[%emt 0:00:07]} Ke7 {[%emt 0:01:27]} 35. Qd3 {[%emt 0:00:40]} c5 {[%emt 0:00:56]} 36. Qd2 {[%emt 0:00:52]} Bxe4 {[%emt 0:00:30]} 37. Qe1 {[%emt 0:00:25]} Bxf3+ {[%emt 0:00:31]} 38. exf3 {[%emt 0:00:10]} Qxe1+ {[%emt 0:00:14]} 39. Rxe1+ {[%emt 0:00:02]} Kxd7 {[%emt 0:00:12]} 40. Re4 {[%emt 0:01:07]} Re8 {[%emt 0:00:51]} 41. Rxf4 {[%emt 0:50:48]} Re3 {[%emt 0:50:34]} 42. Kg2 {[%emt 0:00:00]} Rxb3 {[%emt 0:00:00]} 43. Rh4 {[%emt 0:00:00]} Ra3 {[%emt 0:00:00]} 44. Rxh7+ {[%emt 0:00:00]} Kd6 {[%emt 0:00:00]} 45. h4 {[%emt 0:00:00]} Rxa4 {[%emt 0:00:00]} 46. h5 {[%emt 0:00:00]} b3 {[%emt 0:00:00]} 47. Rb7 {[%emt 0:00:37]} Rb4 {[%emt 0:00:01]} 48. Rxb4 {[%emt 0:00:02]} axb4 {[%emt 0:00:04]} 49. h6 0-1

[Event "4NCL 2021-22"]
[Site "England"]
[Date "2022.03.26"]
[Round "5.24"]
[White "Boswell, Jacob Connor"]
[Black "Head, Louise"]
[Result "1-0"]
[ECO "D27"]
[WhiteElo "2053"]
[BlackElo "2033"]
[Annotator "NA"]
[PlyCount "87"]
[EventDate "2021.11.27"]
[EventType "team-tourn"]
[EventCountry "ENG"]
[SourceTitle "playchess.com"]
[Source "ChessBase"]
[SourceQuality "1"]
[TimeControl "40/6000+30:3000+30"]

1. Nf3 {[%emt 0:00:57]} d5 {[%emt 0:01:43]} 2. e3 {[%emt 0:00:07]} Nf6 {[%emt 0:00:42]} 3. c4 {[%emt 0:00:11]} dxc4 {[%emt 0:02:09]} 4. Bxc4 {[%emt 0:00:39]} e6 {[%emt 0:00:09]} 5. Nc3 {[%emt 0:01:43]} a6 {[%emt 0:01:06]} 6. a4 {[%emt 0:07:43]} c5 {[%emt 0:05:43]} 7. O-O {[%emt 0:01:05]} Nc6 {[%emt 0:00:57]} 8. d4 {[%emt 0:04:26]} Be7 {[%emt 0:02:29]} 9. Ne5 {[%emt 0:10:21]} cxd4 {[%emt 0:14:54]} 10. Nxc6 {[%emt 0:00:16]} bxc6 {[%emt 0:00:10]} 11. exd4 {[%emt 0:00:32]} a5 {[%emt 0:07:10]} 12. Be3 {[%emt 0:23:35]} Ba6 {[%emt 0:09:32]} 13. b3 {[%emt 0:13:00]} O-O {[%emt 0:08:31]} 14. Qd3 {[%emt 0:10:22]} Qc8 {[%emt 0:03:13]} 15. Rac1 {[%emt 0:04:48]} Qb7 {[%emt 0:07:48]} 16. Rfd1 {[%emt 0:02:50]} Nd5 {[%emt 0:09:08]} 17. Ne4 {[%emt 0:01:24]} h6 {[%emt 0:09:15]} 18. Bd2 {[%emt 0:03:40]} Bxc4 {[%emt 0:12:18]} 19. bxc4 {[%emt 0:00:25]} Nb6 {[%emt 0:04:23]} 20. Nc5 {[%emt 0:13:43]} Qc7 {[%emt 0:02:54]} 21. Qf3 {[%emt 0:05:09]} e5 {[%emt 0:03:57]} 22. Qg3 {[%emt 0:00:44]} Kh8 {[%emt 0:01:52]} 23. Nd3 {[%emt 0:00:49]} Nxa4 {[%emt 0:00:41]} 24. Nxe5 {[%emt 0:00:21]} Qd6 {[%emt 0:01:01]} 25. Bf4 {[%emt 0:03:28]} Qa3 {[%emt 0:00:27]} 26. Rd3 {[%emt 0:00:36]} Qb2 {[%emt 0:00:24]} 27. Rb3 {[%emt 0:00:27]} Qxd4 {[%emt 0:00:25]} 28. Nxc6 {[%emt 0:00:15]} Qd7 {[%emt 0:00:56]} 29. Nxe7 {[%emt 0:00:23]} Qxe7 {[%emt 0:00:16]} 30. Bd6 {[%emt 0:00:17]} Qd7 {[%emt 0:00:45]} 31. Bxf8 {[%emt 0:00:10]} Rxf8 {[%emt 0:00:04]} 32. Rb8 {[%emt 0:00:41]} Qe7 {[%emt 0:00:34]} 33. Rxf8+ {[%emt 0:01:04]} Qxf8 {[%emt 0:00:03]} 34. Rb1 {[%emt 0:00:42]} Qe7 {[%emt 0:00:39]} 35. h3 {[%emt 0:00:24]} Nc5 {[%emt 0:01:04]} 36. Qe3 {[%emt 0:00:28]} Ne6 {[%emt 0:00:31]} 37. Qe4 {[%emt 0:00:35]} Qc7 {[%emt 0:00:33]} 38. Rb7 {[%emt 0:00:29]} Qc8 {[%emt 0:00:06]} 39. Ra7 {[%emt 0:00:27]} Ng5 {[%emt 0:00:29]} 40. Qa8 {[%emt 0:00:10]} Qxa8 {[%emt 0:00:14]} 41. Rxa8+ {[%emt 0:50:06]} Kh7 {[%emt 0:50:02]} 42. Rxa5 {[%emt 0:00:13]} Ne4 {[%emt 0:00:14]} 43. c5 {[%emt 0:00:36]} Kg6 {[%emt 0:01:05]} 44. c6 {[%emt 0:00:57]} 1-0

[Event "4NCL 2021-22"]
[Site "England"]
[Date "2022.03.26"]
[Round "5.26"]
[White "Derakhshani, Borna"]
[Black "Ansell, Simon T"]
[Result "1/2-1/2"]
[ECO "A06"]
[WhiteElo "2371"]
[BlackElo "2432"]
[Annotator "ChessBase"]
[PlyCount "60"]
[EventDate "2021.11.27"]
[EventType "team-tourn"]
[EventCountry "ENG"]
[SourceTitle "playchess.com"]
[Source "ChessBase"]
[SourceQuality "1"]
[TimeControl "40/6000+30:3000+30"]

1. Nf3 {[%emt 0:00:01]} d5 {[%emt 0:01:38]} 2. b3 {[%emt 0:00:16]} Bg4 {[%emt 0:03:32]} 3. Bb2 {[%emt 0:01:16]} Bxf3 {[%emt 0:03:08]} 4. exf3 {[%emt 0:00:15]} e6 {[%emt 0:00:51]} 5. f4 {[%emt 0:04:30]} Nd7 {[%emt 0:02:41]} 6. g3 {[%emt 0:01:30]} Ngf6 {[%emt 0:01:38]} 7. Bg2 {[%emt 0:00:17]} a5 {[%emt 0:03:26]} 8. O-O {[%emt 0:02:57]} Be7 {[%emt 0:02:31]} 9. Re1 {[%emt 0:03:12]} O-O {[%emt 0:00:09]} 10. d3 {[%emt 0:03:39]} a4 {[%emt 0:03:28]} 11. c4 {[%emt 0:17:00]} Bb4 {[%emt 0:05:39]} 12. Re3 {[%emt 0:16:03]} a3 {[%emt 0:13:39]} 13. Be5 {[%emt 0:15:29]} dxc4 {[%emt 0:07:18]} 14. bxc4 {[%emt 0:01:57]} Nxe5 {[%emt 0:03:23]} 15. fxe5 {[%emt 0:02:06]} Qd4 {[%emt 0:00:34]} 16. Nxa3 {[%emt 0:00:37]} Ng4 {[%emt 0:10:44]} 17. Nc2 {[%emt 0:00:19]} Nxe3 {[%emt 0:00:06]} 18. fxe3 {[%emt 0:00:06]} Qxe5 {[%emt 0:06:05]} 19. Nxb4 {[%emt 0:02:33]} Qxe3+ {[%emt 0:00:07]} 20. Kh1 {[%emt 0:00:21]} c6 {[%emt 0:02:29]} 21. Nc2 {[%emt 0:03:40]} Qf2 {[%emt 0:00:47]} 22. d4 {[%emt 0:01:22]} Qf6 {[%emt 0:13:37]} 23. Qd3 {[%emt 0:00:41]} Qg6 {[%emt 0:02:45]} 24. Qxg6 {[%emt 0:03:10]} hxg6 {[%emt 0:00:05]} 25. a3 {[%emt 0:00:15]} Ra4 {[%emt 0:02:34]} 26. Bf1 {[%emt 0:00:20]} Rd8 {[%emt 0:00:26]} 27. Rd1 {[%emt 0:08:52]} g5 {[%emt 0:09:41]} 28. Kg1 {[%emt 0:01:27]} Ra5 {[%emt 0:00:42]} 29. Bg2 {[%emt 0:01:41]} Ra4 {[%emt 0:00:21]} 30. Bf1 {[%emt 0:00:51]} Ra5 {[%emt 0:00:07]} 1/2-1/2

[Event "4NCL 2021-22"]
[Site "England"]
[Date "2022.03.26"]
[Round "5.27"]
[White "Bates, Richard A"]
[Black "Willow, Jonah B"]
[Result "1/2-1/2"]
[ECO "E04"]
[WhiteElo "2444"]
[BlackElo "2365"]
[Annotator "ChessBase"]
[PlyCount "78"]
[EventDate "2021.11.27"]
[EventType "team-tourn"]
[EventCountry "ENG"]
[SourceTitle "playchess.com"]
[Source "ChessBase"]
[SourceQuality "1"]
[TimeControl "40/6000+30:3000+30"]

1. d4 {[%emt 0:00:22]} Nf6 {[%emt 0:00:12]} 2. Nf3 {[%emt 0:01:03]} e6 {[%emt 0:00:12]} 3. c4 {[%emt 0:02:56]} d5 {[%emt 0:00:25]} 4. g3 {[%emt 0:00:19]} dxc4 {[%emt 0:00:23]} 5. Bg2 {[%emt 0:00:09]} Bb4+ {[%emt 0:00:08]} 6. Bd2 {[%emt 0:00:16]} a5 {[%emt 0:00:15]} 7. Qc2 {[%emt 0:02:11]} Bxd2+ {[%emt 0:00:22]} 8. Qxd2 {[%emt 0:00:19]} c6 {[%emt 0:00:15]} 9. a4 {[%emt 0:01:31]} Ne4 {[%emt 0:00:06]} 10. Qf4 {[%emt 0:01:35]} Qb6 {[%emt 0:00:03]} 11. O-O {[%emt 0:01:38]} Qxb2 {[%emt 0:00:37]} 12. Ne5 {[%emt 0:06:27]} O-O {[%emt 0:00:22]} 13. Na3 {[%emt 0:01:15]} Nc3 {[%emt 0:00:02]} 14. Qe3 {[%emt 0:03:51]} Nxe2+ {[%emt 0:00:28]} 15. Kh1 {[%emt 0:00:11]} Nc3 {[%emt 0:00:03]} 16. Naxc4 {[%emt 0:11:03]} Qb4 {[%emt 0:00:09]} 17. Rfc1 {[%emt 0:02:04]} Nd5 {[%emt 0:02:47]} 18. Bxd5 {[%emt 0:01:33]} exd5 {[%emt 0:00:39]} 19. Nd3 {[%emt 0:00:19]} Qxc4 {[%emt 0:00:10]} 20. Rxc4 {[%emt 0:00:06]} dxc4 {[%emt 0:00:02]} 21. Nf4 {[%emt 0:04:15]} Bf5 {[%emt 0:32:39]} 22. g4 {[%emt 0:10:33]} Bg6 {[%emt 0:04:50]} 23. h4 {[%emt 0:12:41]} Nd7 {[%emt 0:05:52]} 24. h5 {[%emt 0:02:11]} Rfe8 {[%emt 0:00:18]} 25. Qa3 {[%emt 0:03:18]} Be4+ {[%emt 0:03:16]} 26. f3 {[%emt 0:00:13]} Bd3 {[%emt 0:00:48]} 27. Nxd3 {[%emt 0:05:43]} Re3 {[%emt 0:02:29]} 28. Re1 {[%emt 0:08:54]} Rxd3 {[%emt 0:00:12]} 29. Qd6 {[%emt 0:02:23]} Nf8 {[%emt 0:01:19]} 30. Kg2 {[%emt 0:05:21]} c3 {[%emt 0:16:42]} 31. Re7 {[%emt 0:02:30]} Ne6 {[%emt 0:01:02]} 32. Rxe6 {[%emt 0:01:12]} c2 {[%emt 0:05:25]} 33. Qd7 {[%emt 0:05:31]} fxe6 {[%emt 0:01:21]} 34. h6 {[%emt 0:00:11]} gxh6 {[%emt 0:01:05]} 35. Qxe6+ {[%emt 0:00:12]} Kf8 {[%emt 0:01:55]} 36. Qxh6+ {[%emt 0:02:16]} Ke8 {[%emt 0:03:45]} 37. Qe6+ {[%emt 0:02:17]} Kd8 {[%emt 0:00:39]} 38. Qd6+ {[%emt 0:01:55]} Kc8 {[%emt 0:00:09]} 39. Qe6+ {[%emt 0:01:18]} Kd8 {[%emt 0:04:47]} 1/2-1/2

[Event "4NCL 2021-22"]
[Site "England"]
[Date "2022.03.26"]
[Round "5.28"]
[White "Fitzsimons, David"]
[Black "Ledger, Andrew J"]
[Result "1-0"]
[ECO "A28"]
[WhiteElo "2369"]
[BlackElo "2438"]
[Annotator "ChessBase"]
[PlyCount "115"]
[EventDate "2021.11.27"]
[EventType "team-tourn"]
[EventCountry "ENG"]
[SourceTitle "playchess.com"]
[Source "ChessBase"]
[SourceQuality "1"]
[TimeControl "40/6000+30:3000+30"]

1. c4 {[%emt 0:02:46]} Nf6 {[%emt 0:01:50]} 2. Nc3 {[%emt 0:00:36]} e5 {[%emt 0:01:32]} 3. Nf3 {[%emt 0:00:24]} Nc6 {[%emt 0:00:06]} 4. d4 {[%emt 0:00:18]} exd4 {[%emt 0:00:23]} 5. Nxd4 {[%emt 0:00:08]} Bb4 {[%emt 0:00:30]} 6. g3 {[%emt 0:00:12]} O-O {[%emt 0:05:03]} 7. Bg2 {[%emt 0:00:36]} Ne5 {[%emt 0:03:16]} 8. Qb3 {[%emt 0:02:49]} Bc5 {[%emt 0:03:35]} 9. Be3 {[%emt 0:02:59]} Nfg4 {[%emt 0:13:32]} 10. Nc6 {[%emt 0:11:58]} Qe8 {[%emt 0:03:50]} 11. Bxc5 {[%emt 0:05:30]} Nd3+ {[%emt 0:00:14]} 12. Kf1 {[%emt 0:00:07]} Nxc5 {[%emt 0:00:10]} 13. Qa3 {[%emt 0:00:12]} d6 {[%emt 0:11:42]} 14. Nd4 {[%emt 0:02:46]} c6 {[%emt 0:05:33]} 15. h3 {[%emt 0:10:18]} Ne5 {[%emt 0:01:19]} 16. b3 {[%emt 0:00:18]} f5 {[%emt 0:04:06]} 17. f4 {[%emt 0:11:03]} Ned7 {[%emt 0:05:02]} 18. b4 {[%emt 0:10:20]} Ne4 {[%emt 0:11:17]} 19. Nxe4 {[%emt 0:06:08]} fxe4 {[%emt 0:00:04]} 20. Kg1 {[%emt 0:00:41]} Nb6 {[%emt 0:07:22]} 21. Qb3 {[%emt 0:02:55]} d5 {[%emt 0:01:31]} 22. cxd5 {[%emt 0:01:24]} cxd5 {[%emt 0:00:08]} 23. Rc1 {[%emt 0:06:44]} Bd7 {[%emt 0:01:03]} 24. Rc5 {[%emt 0:04:14]} Rc8 {[%emt 0:05:05]} 25. Kh2 {[%emt 0:00:45]} Ba4 {[%emt 0:03:21]} 26. Qb1 {[%emt 0:04:01]} Qe7 {[%emt 0:04:19]} 27. Rhc1 {[%emt 0:04:55]} a6 {[%emt 0:01:44]} 28. R1c3 {[%emt 0:03:07]} Bd7 {[%emt 0:04:18]} 29. Qc2 {[%emt 0:02:55]} Rxc5 {[%emt 0:01:50]} 30. Rxc5 {[%emt 0:00:30]} Rc8 {[%emt 0:00:49]} 31. Nb3 {[%emt 0:05:01]} Rxc5 {[%emt 0:01:51]} 32. Nxc5 {[%emt 0:00:14]} Bb5 {[%emt 0:01:19]} 33. a4 {[%emt 0:01:05]} Be8 {[%emt 0:01:50]} 34. Qd2 {[%emt 0:02:37]} Bf7 {[%emt 0:01:08]} 35. Qd4 {[%emt 0:02:07]} Nc4 {[%emt 0:00:27]} 36. h4 {[%emt 0:00:21]} Nd6 {[%emt 0:00:48]} 37. Bh3 {[%emt 0:00:29]} Qf6 {[%emt 0:00:31]} 38. Qe5 {[%emt 0:01:15]} Qxe5 {[%emt 0:01:33]} 39. fxe5 {[%emt 0:00:07]} Nc4 {[%emt 0:00:03]} 40. e6 {[%emt 0:01:05]} Be8 {[%emt 0:00:58]} 41. e7 {[%emt 0:05:26]} Kf7 {[%emt 0:03:28]} 42. Be6+ {[%emt 0:02:04]} Kxe7 {[%emt 0:00:06]} 43. Bxd5 {[%emt 0:00:05]} Nd6 {[%emt 0:03:15]} 44. a5 {[%emt 0:07:12]} Bb5 {[%emt 0:04:48]} 45. e3 {[%emt 0:01:33]} Bd3 {[%emt 0:05:16]} 46. g4 {[%emt 0:06:58]} Kf6 {[%emt 0:04:48]} 47. Nd7+ {[%emt 0:00:08]} Ke7 {[%emt 0:00:12]} 48. Nc5 {[%emt 0:00:06]} Kf6 {[%emt 0:00:03]} 49. Bxb7 {[%emt 0:08:29]} Nxb7 {[%emt 0:03:48]} 50. Nxb7 {[%emt 0:00:06]} Ke5 {[%emt 0:04:19]} 51. Nc5 {[%emt 0:00:06]} Kd5 {[%emt 0:00:39]} 52. g5 {[%emt 0:01:31]} Kc6 {[%emt 0:00:33]} 53. Ne6 {[%emt 0:01:11]} Kb5 {[%emt 0:01:38]} 54. Nxg7 {[%emt 0:00:32]} Bc4 {[%emt 0:00:57]} 55. Ne8 {[%emt 0:02:00]} Kxb4 {[%emt 0:00:53]} 56. Nf6 {[%emt 0:00:06]} Kxa5 {[%emt 0:00:23]} 57. Nxh7 {[%emt 0:03:32]} Kb4 {[%emt 0:00:23]} 58. Nf8 {[%emt 0:00:24]} 1-0

[Event "4NCL 2021-22"]
[Site "England"]
[Date "2022.03.26"]
[Round "5.29"]
[White "Ledger, Dave J"]
[Black "Haydon, David L"]
[Result "1-0"]
[ECO "B12"]
[WhiteElo "2148"]
[BlackElo "2294"]
[Annotator "ChessBase"]
[PlyCount "111"]
[EventDate "2021.11.27"]
[EventType "team-tourn"]
[EventCountry "ENG"]
[SourceTitle "playchess.com"]
[Source "ChessBase"]
[SourceQuality "1"]
[TimeControl "40/6000+30:3000+30"]

1. e4 {[%emt 0:00:06]} c6 {[%emt 0:00:24]} 2. d4 {[%emt 0:00:25]} d5 {[%emt 0:00:30]} 3. e5 {[%emt 0:00:33]} Bf5 {[%emt 0:00:06]} 4. h4 {[%emt 0:01:10]} h5 {[%emt 0:10:30]} 5. Bd3 {[%emt 0:00:57]} Bxd3 {[%emt 0:03:32]} 6. Qxd3 {[%emt 0:00:07]} e6 {[%emt 0:00:19]} 7. Bg5 {[%emt 0:01:16]} Ne7 {[%emt 0:01:45]} 8. Nd2 {[%emt 0:07:10]} Qb6 {[%emt 0:03:45]} 9. Ne2 {[%emt 0:02:18]} Nd7 {[%emt 0:01:19]} 10. c4 {[%emt 0:10:24]} Qa6 {[%emt 0:05:37]} 11. b3 {[%emt 0:05:33]} Nf5 {[%emt 0:03:54]} 12. Ng3 {[%emt 0:06:22]} Nxg3 {[%emt 0:08:04]} 13. Qxg3 {[%emt 0:03:04]} dxc4 {[%emt 0:04:12]} 14. O-O {[%emt 0:08:16]} Nb6 {[%emt 0:10:03]} 15. Rfc1 {[%emt 0:03:17]} c3 {[%emt 0:08:25]} 16. Rxc3 {[%emt 0:06:23]} Bb4 {[%emt 0:08:32]} 17. Rd3 {[%emt 0:08:32]} Bxd2 {[%emt 0:03:00]} 18. Rxd2 {[%emt 0:02:35]} Nd5 {[%emt 0:00:49]} 19. Qf3 {[%emt 0:03:17]} Rc8 {[%emt 0:04:04]} 20. Rc1 {[%emt 0:01:51]} Rc7 {[%emt 0:00:40]} 21. Rc5 {[%emt 0:06:31]} Rd7 {[%emt 0:01:37]} 22. Qe4 {[%emt 0:02:46]} Qb6 {[%emt 0:04:26]} 23. Kh2 {[%emt 0:02:36]} Qc7 {[%emt 0:02:00]} 24. Kh3 {[%emt 0:03:43]} a6 {[%emt 0:05:08]} 25. a3 {[%emt 0:00:47]} Qc8 {[%emt 0:01:17]} 26. Kh2 {[%emt 0:06:05]} Rc7 {[%emt 0:00:50]} 27. b4 {[%emt 0:01:23]} Qd7 {[%emt 0:00:31]} 28. Rdc2 {[%emt 0:01:30]} O-O {[%emt 0:07:04]} 29. Qf3 {[%emt 0:02:45]} Ne7 {[%emt 0:03:07]} 30. Bxe7 {[%emt 0:04:30]} Qxe7 {[%emt 0:00:01]} 31. Qxh5 {[%emt 0:00:12]} Rd7 {[%emt 0:00:38]} 32. Qg4 {[%emt 0:01:00]} Rfd8 {[%emt 0:01:31]} 33. Rd2 {[%emt 0:00:35]} Rd5 {[%emt 0:01:34]} 34. h5 {[%emt 0:04:41]} f5 {[%emt 0:00:32]} 35. exf6 {[%emt 0:01:16]} Qxf6 {[%emt 0:00:04]} 36. Rxd5 {[%emt 0:00:22]} Rxd5 {[%emt 0:01:05]} 37. Re2 {[%emt 0:02:14]} Kf7 {[%emt 0:01:18]} 38. Re4 {[%emt 0:00:47]} Rf5 {[%emt 0:00:44]} 39. f3 {[%emt 0:01:01]} Qh6 {[%emt 0:00:38]} 40. Re5 {[%emt 0:01:02]} Rf4 {[%emt 0:06:15]} 41. Rxe6 {[%emt 0:08:34]} Rxg4 {[%emt 0:06:19]} 42. Rxh6 {[%emt 0:00:17]} Rxd4 {[%emt 0:00:26]} 43. Rh8 {[%emt 0:02:25]} Rd3 {[%emt 0:03:08]} 44. Rb8 {[%emt 0:05:35]} b5 {[%emt 0:00:30]} 45. Rb6 {[%emt 0:02:37]} Rxa3 {[%emt 0:00:06]} 46. Rxc6 {[%emt 0:00:06]} Ra4 {[%emt 0:00:26]} 47. g4 {[%emt 0:00:37]} Rxb4 {[%emt 0:00:26]} 48. Rxa6 {[%emt 0:00:07]} Rc4 {[%emt 0:01:25]} 49. Rb6 {[%emt 0:01:51]} Rc5 {[%emt 0:00:21]} 50. Kg3 {[%emt 0:00:45]} Kg8 {[%emt 0:00:14]} 51. f4 {[%emt 0:02:28]} Kh7 {[%emt 0:00:37]} 52. g5 {[%emt 0:00:54]} Rc1 {[%emt 0:01:13]} 53. Rb8 {[%emt 0:00:55]} Rg1+ {[%emt 0:06:10]} 54. Kf2 {[%emt 0:00:43]} Rh1 {[%emt 0:00:25]} 55. g6+ {[%emt 0:00:09]} Kh6 {[%emt 0:00:12]} 56. Rh8# {[%emt 0:00:35]} 1-0